bitfinex-derivatives/quotes_ETHF0:USTF0_20250502
["timestamp","ask_amount","ask_price","bid_price","bid_amount"]
[1746167322946,6.91266995,1836.2,1836.1,3.08894]
[1746167326747,6.91266995,1836.2,1836.1,1.08894]
[1746167327454,3.2904,1836.2,1836.1,1.08894]
[1746167328745,3.2904,1836.2,1836.1,2.83704]
[1746167329645,1.6458,1836.2,1836.1,2.83704]
[1746167330659,3.3399,1836.2,1836.1,2.83704]
[1746167331451,6.5477,1836.2,1836.1,1.08894]
[1746167332752,6.5477,1836.2,1836.0,1.7129]
[1746167332956,1.7036,1836.1,1835.9,40.8]
[1746167333158,1.7036,1836.1,1836.0,1.08905]
[1746167334561,1.7036,1836.1,1836.0,4.61005]
[1746167335151,3.5519,1836.2,1836.1,1.08899]
[1746167335356,5.1512,1836.2,1836.1,2.73829]
[1746167335657,3.2451,1836.2,1836.1,2.73829]
[1746167336562,4.33403,1836.2,1836.1,2.73829]
[1746167336765,3.2451,1836.2,1836.1,2.73829]
[1746167336958,1.6458,1836.2,1836.1,4.73829]
[1746167338257,0.8312,1836.2,1836.1,4.73829]
[1746167338560,1.92013,1836.2,1836.1,4.73829]
[1746167338756,3.57683,1836.2,1836.1,4.73829]
[1746167339055,2.4879,1836.2,1836.1,4.73829]
[1746167339258,3.57683,1836.2,1836.1,4.73829]
[1746167339660,3.57683,1836.2,1836.1,3.6493]
[1746167339958,2.4879,1836.2,1836.1,3.08899]
[1746167340458,3.57683,1836.2,1836.1,3.08899]
[1746167340661,2.4879,1836.2,1836.1,3.08899]
[1746167341062,3.58380378,1836.2,1836.1,3.08899]
[1746167341360,2.49487378,1836.2,1836.1,3.08899]
[1746167341762,3.58380378,1836.2,1836.1,4.72289]
[1746167341960,2.49487378,1836.2,1836.1,4.72289]
[1746167348564,0.00697378,1836.2,1836.1,4.72289]
[1746167348769,0.00697378,1836.2,1836.1,5.53309]
[1746167348966,0.00697378,1836.2,1836.1,6.36399]
[1746167349165,0.00697378,1836.2,1836.1,47.16399]
[1746167350969,0.00697378,1836.2,1836.1,47.59761564]
[1746167351361,0.00697378,1836.2,1836.1,47.16399]
[1746167351672,0.00697378,1836.2,1836.1,46.33309]
[1746167352063,0.87017378,1836.2,1836.1,5.53309]
[1746167353860,0.87017378,1836.2,1836.1,4.72289]
[1746167354264,2.50157378,1836.2,1836.1,4.72289]
[1746167356262,6.12384373,1836.2,1836.1,4.72289]
[1746167357678,6.12384373,1836.2,1836.1,3.08899]
[1746167358776,6.12384373,1836.2,1836.1,4.73489]
[1746167360471,6.81813887,1836.2,1836.1,4.73489]
[1746167360671,5.18673887,1836.2,1836.1,4.73489]
[1746167361470,6.88033887,1836.2,1836.1,4.73489]
[1746167362080,5.18673887,1836.2,1836.1,4.73489]
[1746167362666,4.49244373,1836.2,1836.1,4.73489]
[1746167362871,0.00697378,1836.2,1836.1,4.73489]
[1746167363177,0.00697378,1836.2,1836.1,5.60709]
[1746167365581,4.34016774,1836.2,1836.1,5.60709]
[1746167368080,4.34016774,1836.2,1836.1,46.40709]
[1746167368886,3.64591508,1836.2,1836.1,46.40709]
[1746167369081,3.64591508,1836.2,1836.1,49.61489]
[1746167372383,3.64591508,1836.2,1836.1,48.74269]
[1746167378791,0.00697378,1836.2,1836.1,48.74269]
[1746167382000,1.71777378,1836.2,1836.1,48.74269]
[1746167383400,1.71777378,1836.2,1836.1,6.29679]
[1746167384102,2.80670378,1836.2,1836.1,2.0]
[1746167384294,2.80670378,1836.2,1836.0,45.41003]
[1746167384495,2.4528,1836.1,1836.0,47.41003]
[1746167385205,2.4528,1836.1,1836.0,6.61003]
[1746167385703,2.4528,1836.1,1836.0,8.34003]
[1746167388798,6.09145096,1836.1,1836.0,8.34003]
[1746167392418,6.88335096,1836.1,1836.0,8.34003]
[1746167398015,7.70025096,1836.1,1836.0,8.34003]
[1746167398315,6.10225096,1836.1,1836.0,8.34003]
[1746167401110,6.10225096,1836.1,1836.0,49.14003]
[1746167402716,4.45555096,1836.1,1836.0,49.14003]
[1746167403418,4.45555096,1836.1,1836.0,50.01073]
[1746167407621,0.8169,1836.1,1836.0,50.01073]
[1746167413819,1.91307378,1836.2,1836.1,1.08899]
[1746167414021,1.91307378,1836.2,1836.1,8.81529]
[1746167414224,0.00697378,1836.2,1836.1,8.81529]
[1746167415020,0.85867378,1836.2,1836.1,8.81529]
[1746167415817,0.85867378,1836.2,1836.1,8.01379]
[1746167416027,2.50007378,1836.2,1836.1,8.01379]
[1746167417025,2.4931,1836.2,1836.1,8.01379]
[1746167419129,2.50007378,1836.2,1836.1,8.01379]
[1746167420823,2.50007378,1836.2,1836.1,3.08899]
[1746167421720,5.70787378,1836.2,1836.1,1.08899]
[1746167423732,2.50007378,1836.2,1836.1,1.08899]
[1746167425124,8.65233944,1836.2,1836.1,1.08899]
[1746167430319,11.86013944,1836.2,1836.0,4.60702]
[1746167430519,2.5481,1836.1,1836.0,4.60702]
[1746167432222,12.33778469,1836.1,1836.0,4.60702]
[1746167433425,12.33778469,1836.1,1836.0,3.518]
[1746167433625,13.42677469,1836.1,1836.0,4.60705]
[1746167433933,12.33778469,1836.1,1835.6,13.212286]
[1746167434132,4.29694,1835.9,1835.8,2.0]
[1746167434628,5.90894,1835.9,1835.8,2.0]
[1746167436223,4.8198,1835.9,1835.6,54.685556]
[1746167436435,4.44702,1835.8,1835.6,54.685556]
[1746167436729,2.78823,1835.7,1835.6,53.596286]
[1746167437126,2.78823,1835.7,1835.6,12.796286]
[1746167437327,2.78823,1835.7,1835.6,13.885566]
[1746167437523,2.78823,1835.7,1835.6,10.796286]
[1746167440827,2.78823,1835.7,1835.6,3.516]
[1746167441933,4.9068,1835.7,1835.3,3.517]
[1746167442225,2.4095,1835.6,1835.5,1.08934]
[1746167442426,2.4095,1835.6,1835.5,3.08934]
[1746167442627,1.90848,1835.8,1835.6,1.08925]
[1746167442830,4.39518,1835.8,1835.6,4.70305]
[1746167443230,4.39518,1835.8,1835.7,1.6138]
[1746167444933,4.39518,1835.8,1835.7,2.70303]
[1746167444934,1.6446,1835.8,1835.7,2.70303]
[1746167445135,1.6446,1835.8,1835.7,4.70303]
[1746167445534,4.64027,1835.8,1835.7,4.70303]
[1746167446034,3.5511,1835.8,1835.7,4.70303]
[1746167447736,4.64027,1835.8,1835.7,3.6138]
[1746167447939,3.5511,1835.8,1835.7,4.70303]
[1746167448237,3.5511,1835.8,1835.7,3.6138]
[1746167448537,4.64027,1835.8,1835.7,3.6138]
[1746167449435,3.5511,1835.8,1835.7,4.70303]
[1746167449738,4.64027,1835.8,1835.7,3.6138]
[1746167450236,3.5511,1835.8,1835.7,4.70303]
[1746167454531,1.9065,1835.8,1835.7,4.70303]
[1746167458743,2.6984,1835.8,1835.7,4.70303]
[1746167459941,4.3838,1835.8,1835.7,4.70303]
[1746167464235,5.47297,1835.8,1835.7,4.70303]
[1746167464442,4.3838,1835.8,1835.7,4.70303]
[1746167469653,5.2008,1835.8,1835.7,4.70303]
[1746167471543,2.7235,1835.8,1835.7,4.70303]
[1746167471947,2.7235,1835.8,1835.7,7.91083]
[1746167474649,1.62262,1835.8,1835.7,7.91083]
[1746167474858,3.21477378,1836.2,1836.1,1.08899]
[1746167475154,3.21477378,1836.2,1836.1,6.60299]
[1746167475852,3.21477378,1836.2,1836.1,8.23159]
[1746167476052,3.21477378,1836.2,1836.1,9.03509]
[1746167476449,3.21477378,1836.2,1836.1,8.23159]
[1746167479251,6.91077378,1836.2,1836.1,8.23159]
[1746167479750,3.70297378,1836.2,1836.1,8.23159]
[1746167479955,3.70297378,1836.2,1836.1,11.43939]
[1746167480556,2.44934378,1836.2,1836.1,11.43939]
[1746167481057,2.44934378,1836.2,1836.1,52.23939]
[1746167481262,2.44934378,1836.2,1836.1,52.23839]
[1746167482858,2.44934378,1836.2,1836.1,48.72539]
[1746167483055,2.44934378,1836.2,1836.1,52.23839]
[1746167483958,3.14357257,1836.2,1836.1,52.23839]
[1746167487166,0.69422879,1836.2,1836.1,52.23839]
[1746167488367,1.53962879,1836.2,1836.1,52.23839]
[1746167488983,0.8454,1836.2,1836.1,52.23839]
[1746167489185,4.5414,1836.2,1836.1,52.23839]
[1746167489986,3.696,1836.2,1836.1,52.23839]
[1746167490485,1.5671,1836.3,1836.2,1.08893]
[1746167490676,1.5671,1836.3,1836.2,6.42073]
[1746167490877,0.8168,1836.3,1836.2,11.42073]
[1746167491078,1e-05,1836.3,1836.2,52.22073]
[1746167491386,5.838,1837.3,1836.2,53.18646553]
[1746167491579,5.838,1837.6,1837.1,2.0]
[1746167491781,3.2078,1837.6,1837.4,1.08818]
[1746167491975,3.2078,1837.6,1837.1,3.513]
[1746167492280,3.2078,1837.6,1837.2,3.08831]
[1746167492281,8.80815,1837.6,1837.2,3.08831]
[1746167492581,3.2078,1837.4,1837.2,2.0]
[1746167492784,4.29605,1837.4,1837.1,3.513]
[1746167492983,1.6972,1837.3,1837.1,4.60138]
[1746167493188,5.3932,1837.3,1837.2,1.08834]
[1746167493577,5.3932,1837.3,1837.2,3.08834]
[1746167493782,5.3932,1837.3,1837.2,4.67224]
[1746167494592,5.3932,1837.3,1837.2,3.08834]
[1746167494882,7.0818,1837.3,1837.2,3.08834]
[1746167496083,7.0818,1837.3,1837.2,2.0]
[1746167496282,7.0818,1837.3,1837.2,5.509]
[1746167496585,7.0818,1837.3,1837.2,6.59734]
[1746167497283,3.696,1837.3,1837.2,6.59734]
[1746167497485,3.696,1837.3,1837.2,9.80514]
[1746167498493,3.696,1837.3,1837.2,10.59764]
[1746167498695,3.696,1837.3,1837.2,11.40864]
[1746167499985,3.696,1837.3,1837.2,50.60514]
[1746167500188,6.2612,1837.3,1837.2,50.60514]
[1746167500894,6.2612,1837.3,1837.2,47.39734]
[1746167503391,6.2612,1837.3,1837.2,6.59734]
[1746167503793,6.2612,1837.3,1837.2,3.08834]
[1746167503996,6.2612,1837.3,1837.2,6.59734]
[1746167505298,6.2612,1837.3,1837.2,3.08834]
[1746167505493,10.55728,1837.3,1837.2,5.509]
[1746167505695,14.469,1837.3,1837.2,3.509]
[1746167505894,14.469,1837.3,1837.1,1.08838]
[1746167506200,2.5472,1837.2,1837.1,1.08838]
[1746167507193,6.2432,1837.2,1837.1,1.08838]
[1746167509292,6.2432,1837.2,1837.0,4.59744]
[1746167509293,7.33157,1837.2,1837.0,4.59744]
[1746167509496,6.0246,1837.1,1837.0,2.0]
[1746167509701,6.0246,1837.1,1837.0,1.08845]
[1746167509890,4.9362,1837.1,1837.0,1.08845]
[1746167510091,8.6322,1837.1,1837.0,1.08845]
[1746167512701,1.08845,1837.0,1836.9,41.8885]
[1746167512896,3.66055,1837.0,1836.9,41.8885]
[1746167513091,6.2681,1837.0,1836.9,41.8885]
[1746167514703,3.696,1837.0,1836.9,41.8885]
[1746167514904,3.696,1837.0,1836.9,50.5356]
[1746167516503,0.8165,1837.1,1837.0,1.08845]
[1746167516695,0.8165,1837.1,1837.0,4.72235]
[1746167516899,0.8165,1837.1,1837.0,9.72235]
[1746167517299,4.5125,1837.1,1837.0,9.72235]
[1746167517500,1.905,1837.2,1837.1,1.0884]
[1746167517799,1.905,1837.2,1837.1,9.8052]
[1746167518000,3.2078,1837.5,1837.4,1.08822]
[1746167518307,6.9038,1837.5,1837.4,5.509]
[1746167518508,6.9038,1837.5,1837.4,6.59722]
[1746167518896,8.6436,1837.5,1837.4,6.59722]
[1746167519101,8.6436,1837.5,1837.4,8.29122]
[1746167520406,6.9038,1837.5,1837.4,8.29122]
[1746167520605,3.696,1837.5,1837.4,5.509]
[1746167520906,5.4358,1837.5,1837.4,2.0]
[1746167521404,6.52396,1837.5,1837.4,2.0]
[1746167521603,6.52396,1837.5,1837.3,5.508]
[1746167521798,2.4459,1837.4,1837.3,5.508]
[1746167522309,6.1419,1837.4,1837.3,5.508]
[1746167522498,9.3497,1837.4,1837.3,5.508]
[1746167523609,9.3497,1837.4,1837.3,6.59628]
[1746167523805,9.3497,1837.4,1837.3,5.508]
[1746167524001,9.3497,1837.4,1837.3,6.59628]
[1746167525005,9.3497,1837.4,1837.3,5.508]
[1746167525505,10.43792,1837.4,1837.3,2.0]
[1746167525705,10.43792,1837.4,1837.1,5.2427]
[1746167525902,2.5123,1837.3,1837.2,3.08834]
[1746167527312,2.5123,1837.3,1837.2,4.80544]
[1746167527313,6.2083,1837.3,1837.2,4.80544]
[1746167529007,3.696,1837.3,1837.2,4.80544]
[1746167535814,4.5413,1837.3,1837.2,2.0]
[1746167536014,6.1337,1837.3,1836.9,47.5148]
[1746167536209,2.4273,1837.2,1837.1,3.08839]
[1746167536607,0.8349,1837.2,1837.1,3.08839]
[1746167536911,0.8349,1837.2,1837.1,4.81179]
[1746167537107,4.5309,1837.2,1837.1,4.81179]
[1746167538010,6.1411,1837.2,1837.1,4.81179]
[1746167540008,9.3489,1837.2,1836.7,7.23170427]
[1746167540309,3.2078,1836.9,1836.7,7.23170427]
[1746167540505,2.5546,1836.8,1836.7,7.23170427]
[1746167540709,2.5546,1836.8,1836.7,9.23170427]
[1746167541117,6.2506,1836.8,1836.7,9.23170427]
[1746167542618,6.2506,1836.8,1836.7,10.32033427]
[1746167543118,6.2506,1836.8,1836.7,12.04493427]
[1746167544620,6.2506,1836.8,1836.7,10.95630427]
[1746167544918,6.2506,1836.8,1836.7,15.55293427]
[1746167545519,6.2506,1836.8,1836.7,8.32123]
[1746167545915,6.2506,1836.8,1836.7,5.508]
[1746167546110,7.33917,1836.8,1836.7,5.508]
[1746167546413,6.2506,1836.8,1836.7,3.508]
[1746167546614,7.33917,1836.8,1836.7,3.508]
[1746167546810,6.2506,1836.8,1836.7,3.508]
[1746167547415,7.33917,1836.8,1836.7,3.508]
[1746167549423,6.2506,1836.8,1836.7,4.59663]
[1746167549818,6.2506,1836.8,1836.7,6.30933]
[1746167550524,6.2506,1836.8,1836.7,5.2207]
[1746167550726,7.33917,1836.8,1836.7,3.508]
[1746167553024,7.33917,1836.8,1836.7,4.59663]
[1746167553528,7.33917,1836.8,1836.7,3.508]
[1746167556628,1.08875,1836.5,1836.4,44.315]
[1746167557322,4.78475,1836.5,1836.4,3.515]
[1746167557523,5.60145,1836.5,1836.4,3.515]
[1746167560031,7.26995,1836.5,1836.4,3.515]
[1746167561232,10.47775,1836.5,1836.4,3.515]
[1746167565632,10.47775,1836.5,1836.4,5.1781]
[1746167566132,10.47775,1836.5,1836.4,1.6631]
[1746167567834,7.26995,1836.5,1836.4,1.6631]
[1746167570137,6.1812,1836.5,1836.4,1.6631]
[1746167570537,7.26995,1836.5,1836.4,1.6631]
[1746167572237,7.26995,1836.5,1836.4,2.75191]
[1746167572639,6.1812,1836.5,1836.4,2.75191]
[1746167576838,6.1812,1836.5,1836.4,3.57061]
[1746167577437,3.696,1836.5,1836.4,3.57061]
[1746167578234,4.78477,1836.5,1836.3,4.60383]
[1746167578431,6.41517,1836.5,1836.3,8.18783]
[1746167579741,6.41517,1836.5,1836.4,1.08881]
[1746167579939,6.41517,1836.5,1836.3,6.18783]
[1746167580139,1.6758,1836.4,1836.3,8.18783]
[1746167581241,5.3718,1836.4,1836.3,8.18783]
[1746167582140,5.3718,1836.4,1836.3,4.67283]
[1746167582337,5.3718,1836.4,1836.3,8.18783]
[1746167583954,6.46061,1836.4,1836.3,7.099]
[1746167584253,6.46061,1836.4,1836.2,5.40631]
[1746167584455,5.3718,1836.4,1836.3,1.08887]
[1746167584754,5.3718,1836.4,1836.3,2.68877]
[1746167586554,3.696,1836.4,1836.3,2.68877]
[1746167586748,3.696,1836.4,1836.3,3.50717]
[1746167586944,3.696,1836.4,1836.3,5.50717]
[1746167587158,4.5128,1836.4,1836.3,5.50717]
[1746167590559,7.30391,1836.4,1836.3,4.4183]
[1746167590761,1.08887,1836.3,1836.2,0.8014]
[1746167591061,2.5358,1836.3,1836.2,5.39933]
[1746167591558,3.62467,1836.3,1836.2,4.3104]
[1746167591760,3.62467,1836.3,1836.2,5.39933]
[1746167592052,7.32067,1836.3,1836.2,5.39933]
[1746167592660,6.2318,1836.3,1836.2,5.39933]
[1746167593163,7.32067,1836.3,1836.2,5.39933]
[1746167593353,7.32067,1836.3,1836.2,3.509]
[1746167594162,7.32067,1836.3,1836.2,4.59793]
[1746167594364,7.32067,1836.3,1836.2,1.08893]
[1746167594759,6.2318,1836.3,1836.1,46.83357]
[1746167594962,1.6895,1836.2,1836.1,46.83357]
[1746167597163,2.77843,1836.2,1836.1,45.7446]
[1746167597364,1.08905,1836.0,1835.9,0.7917]
[1746167597562,4.29685,1836.0,1835.8,2.74434]
[1746167597769,3.56221,1835.9,1835.8,1.6552]
[1746167598262,1.08917,1835.8,1835.7,97.189]
[1746167598565,1.08917,1835.8,1835.7,59.13343]
[1746167598566,1.6591,1835.8,1835.7,59.13343]
[1746167598959,3.5656,1835.8,1835.7,59.13343]
[1746167599458,3.5656,1835.8,1835.7,58.0442]
[1746167599865,3.5656,1835.8,1835.7,7.1642]
[1746167600166,4.65477,1835.8,1835.7,7.1642]
[1746167600362,4.65477,1835.8,1835.7,5.509]
[1746167600665,5.49997,1835.8,1835.7,3.509]
[1746167600860,1.08923,1835.7,1835.6,2.5046]
[1746167601061,2.81833,1835.7,1835.6,4.5046]
[1746167601359,3.696,1835.7,1835.6,5.59388]
[1746167601565,3.696,1835.7,1835.6,10.59388]
[1746167602268,1.9065,1835.8,1835.7,1.08923]
[1746167602462,1.9065,1835.8,1835.7,7.17233]
[1746167602663,1.9065,1835.8,1835.7,8.84753]
[1746167603071,1.9065,1835.8,1835.7,12.54353]
[1746167611676,2.7235,1835.8,1835.7,12.54353]
[1746167612675,2.7235,1835.8,1835.7,53.34353]
[1746167612878,1.26542,1835.8,1835.7,53.34353]
[1746167613078,3.61909818,1836.3,1836.2,1.08893]
[1746167613268,3.61909818,1836.3,1836.2,3.08893]
[1746167613574,3.61909818,1836.3,1836.2,6.29673]
[1746167613776,3.61909818,1836.3,1836.2,7.99303]
[1746167614178,7.31509818,1836.3,1836.2,7.99303]
[1746167615979,3.696,1836.3,1836.2,7.99303]
[1746167617272,6.146,1836.3,1836.2,7.99303]
[1746167621983,6.146,1836.3,1836.2,11.50103]
[1746167622887,6.146,1836.3,1836.2,7.99303]
[1746167623076,6.146,1836.3,1836.2,8.29323]
[1746167627286,3.696,1836.3,1836.2,11.50103]
[1746167627483,3.696,1836.3,1836.2,8.29323]
[1746167628285,3.696,1836.3,1836.2,16.50103]
[1746167628485,2.58238,1836.3,1836.2,16.50103]
[1746167628790,2.58238,1836.3,1836.2,11.50103]
[1746167630086,2.7227,1836.4,1836.2,10.4121]
[1746167630392,2.7227,1836.4,1836.3,2.72817]
[1746167630580,4.3083,1836.4,1836.3,3.08887]
[1746167630783,2.4065,1836.4,1836.3,3.08887]
[1746167631192,6.1025,1836.4,1836.3,3.08887]
[1746167631597,11.1025,1836.4,1836.3,2.0]
[1746167631894,6.1025,1836.4,1836.3,2.0]
[1746167633888,6.1025,1836.4,1836.2,1.08889]
[1746167634088,1.6666,1836.3,1836.2,3.08889]
[1746167634289,1.6666,1836.3,1836.2,2.0]
[1746167634494,1.6666,1836.3,1836.2,3.08893]
[1746167635196,5.3626,1836.3,1836.2,3.08893]
[1746167638801,3.696,1836.3,1836.2,3.08893]
[1746167638995,3.696,1836.3,1836.2,8.28743]
[1746167642692,2.57905,1836.3,1836.2,11.49523]
[1746167643195,2.7224,1836.5,1836.4,1.08881]
[1746167643399,2.7224,1836.5,1836.4,3.08881]
[1746167643699,3.61909818,1836.6,1836.5,1.08875]
[1746167643893,3.61909818,1836.6,1836.5,7.43345]
[1746167644091,3.61909818,1836.6,1836.5,14.14015]
[1746167647398,2.1642,1836.7,1836.6,3.08869]
[1746167647593,2.1642,1836.7,1836.6,7.97209]
[1746167647794,0.2587,1836.7,1836.6,7.97209]
[1746167650701,0.2587,1836.7,1836.6,8.41424758]
[1746167651494,0.2587,1836.7,1836.6,7.97209]
[1746167651697,2.0123,1836.7,1836.6,7.97209]
[1746167651896,2.8902,1836.7,1836.6,7.97209]
[1746167652197,6.5862,1836.7,1836.6,7.97209]
[1746167653304,6.5862,1836.7,1836.6,6.29649]
[1746167655003,6.5862,1836.7,1836.6,2.0]
[1746167655303,6.5862,1836.7,1836.5,1.08874]
[1746167655506,2.4621,1836.6,1836.5,1.08874]
[1746167655904,2.4621,1836.6,1836.4,4.59477]
[1746167656093,1.6586,1836.5,1836.4,6.59481]
[1746167657195,5.3546,1836.5,1836.4,6.59481]
[1746167657907,5.3546,1836.5,1836.4,3.08881]
[1746167658402,5.3546,1836.5,1836.4,2.0]
[1746167658607,5.3546,1836.5,1836.4,1.08881]
[1746167659902,5.3546,1836.5,1836.4,3.08881]
[1746167660406,5.3546,1836.5,1836.4,4.82231]
[1746167661208,8.97369818,1836.5,1836.4,3.08881]
[1746167664014,5.3546,1836.5,1836.4,3.08881]
[1746167664511,9.65115,1836.5,1836.4,2.0]
[1746167664815,9.65115,1836.5,1836.3,3.507]
[1746167665015,1.7412,1836.4,1836.3,5.507]
[1746167665218,2.83001,1836.4,1836.3,5.507]
[1746167665805,2.83001,1836.4,1836.3,3.507]
[1746167666118,6.52601,1836.4,1836.3,3.507]
[1746167666716,6.52601,1836.4,1836.2,3.507]
[1746167666914,3.3731,1836.3,1836.2,5.507]
[1746167667114,3.3731,1836.3,1836.2,6.59593]
[1746167668515,4.46197,1836.3,1836.2,2.0]
[1746167668709,4.46197,1836.3,1836.1,4.59596]
[1746167668918,1.7197,1836.2,1836.1,6.59596]
[1746167669420,2.80863,1836.2,1836.1,3.507]
[1746167670225,6.50463,1836.2,1836.1,3.507]
[1746167671225,6.50463,1836.2,1836.1,4.59599]
[1746167671421,5.4157,1836.2,1836.1,4.59599]
[1746167672133,1.7197,1836.2,1836.1,6.59599]
[1746167673332,5.4157,1836.2,1836.1,6.59599]
[1746167674224,6.50463,1836.2,1836.1,6.59599]
[1746167674531,3.696,1836.2,1836.1,6.59599]
[1746167674830,3.696,1836.2,1836.1,10.67189]
[1746167675330,3.61909818,1836.3,1836.2,1.08893]
[1746167675531,3.61909818,1836.3,1836.2,5.55523]
[1746167676231,7.31509818,1836.3,1836.2,5.55523]
[1746167676632,13.29266818,1836.3,1836.2,5.507]
[1746167677133,8.99599818,1836.3,1836.2,5.507]
[1746167677634,10.08486818,1836.3,1836.2,7.1705]
[1746167677931,8.99599818,1836.3,1836.2,7.1705]
[1746167678132,8.99599818,1836.3,1836.2,8.25943]
[1746167678525,5.3769,1836.3,1836.2,8.25943]
[1746167678731,3.696,1836.3,1836.2,8.25943]
[1746167684939,6.9038,1836.3,1836.2,2.0]
[1746167685140,6.9038,1836.3,1836.1,1.08895]
[1746167685340,0.8341,1836.2,1836.1,3.08895]
[1746167685538,0.8341,1836.2,1836.1,4.78535]
[1746167685738,2.5865,1836.2,1836.1,4.78535]
[1746167686035,3.696,1836.3,1836.2,1.08893]
[1746167686239,3.696,1836.3,1836.2,4.76573]
[1746167686738,5.4234,1836.3,1836.2,2.0]
[1746167686935,5.4234,1836.3,1836.2,1.08893]
[1746167689446,6.51227,1836.3,1836.1,4.59496]
[1746167689738,2.4948,1836.2,1836.1,1.08896]
[1746167690144,6.1908,1836.2,1836.1,1.08896]
[1746167690445,9.3986,1836.2,1836.1,1.08896]
[1746167690646,10.48753,1836.2,1836.0,5.46073]
[1746167690846,2.5326,1836.1,1836.0,5.46073]
[1746167692044,3.62159,1836.1,1836.0,5.46073]
[1746167692346,7.31759,1836.1,1836.0,1.95473]
[1746167692547,6.2286,1836.1,1836.0,1.08903]
[1746167693352,7.31764,1836.1,1835.9,5.26]
[1746167693550,2.70085,1836.0,1835.9,4.84211]
[1746167693746,5.90865,1836.0,1835.9,5.507]
[1746167694150,9.60465,1836.0,1835.9,5.507]
[1746167694446,5.3078,1836.0,1835.9,6.59611]
[1746167694647,6.39685,1836.0,1835.9,6.59611]
[1746167694956,9.60465,1836.0,1835.9,6.59611]
[1746167695850,8.5156,1836.0,1835.9,6.59611]
[1746167696050,6.39685,1836.0,1835.9,3.08911]
[1746167696651,9.60465,1836.0,1835.9,2.0]
[1746167697048,8.5156,1836.0,1835.5,0.8755]
[1746167697355,1.08925,1835.7,1835.6,3.08928]
[1746167697654,1.08925,1835.7,1835.6,2.0]
[1746167697946,1.08925,1835.7,1835.6,3.08928]
[1746167698145,4.78525,1835.7,1835.6,3.08928]
[1746167698345,6.53755,1835.7,1835.6,3.08928]
[1746167698554,6.53755,1835.7,1835.6,2.0]
[1746167698851,6.53755,1835.7,1835.6,3.08928]
[1746167699054,6.53755,1835.7,1835.6,2.0]
[1746167699255,1.08928,1835.6,1835.5,7.0623]
[1746167699549,1.7523,1835.6,1835.5,9.06234]
[1746167700645,1.7523,1835.6,1835.5,7.973]
[1746167700851,1.7523,1835.6,1835.5,9.06234]
[1746167701050,1.0894,1835.4,1835.3,6.59644]
[1746167701445,4.42879,1835.5,1835.4,1.0894]
[1746167701647,3.3394,1835.5,1835.4,41.8894]
[1746167701842,6.9038,1835.6,1835.5,1.08934]
[1746167702152,2.5389,1835.7,1835.6,1.08928]
[1746167702348,0.8252,1835.7,1835.6,4.70138]
[1746167703154,3.61909818,1835.8,1835.7,1.08923]
[1746167703453,3.61909818,1835.8,1835.7,6.34693]
[1746167704055,9.04774546,1835.9,1835.8,1.08917]
[1746167704253,10.76144546,1835.9,1835.8,3.08917]
[1746167705255,10.76144546,1835.9,1835.8,4.71267]
[1746167706856,11.85055546,1835.9,1835.8,2.0]
[1746167707157,4.70921,1835.9,1835.8,2.0]
[1746167707457,8.6201,1835.9,1835.2,3.2078]
[1746167707644,8.6201,1835.9,1834.9,7.2495263]
[1746167707645,3.2078,1835.3,1834.9,7.2495263]
[1746167707962,2.72307,1835.7,1834.9,9.2495263]
[1746167707963,4.29744,1835.0,1834.9,9.2495263]
[1746167708254,6.9038,1835.0,1834.9,9.2495263]
[1746167708454,7.99344,1835.0,1834.9,7.2495263]
[1746167710659,12.99344,1835.0,1834.9,7.2495263]
[1746167710861,13.25244,1835.0,1834.9,7.2495263]
[1746167711360,8.25244,1835.0,1834.9,7.2495263]
[1746167711761,8.25244,1835.0,1834.5,4.59692]
[1746167711762,7.1628,1835.0,1834.5,3.507]
[1746167711954,4.29768,1834.6,1834.3,41.6767]
[1746167712154,1.7521,1834.5,1834.4,2.78629]
[1746167712358,1.7521,1834.5,1834.4,1.6963]
[1746167712554,2.84204,1834.5,1834.4,1.6963]
[1746167714359,1.7521,1834.5,1834.4,1.6963]
[1746167715055,3.2078,1834.6,1834.4,1.6963]
[1746167715257,3.2078,1834.8,1834.4,3.6963]
[1746167715461,3.2078,1834.8,1834.6,2.0]
[1746167715664,3.2078,1834.8,1834.7,1.6676]
[1746167715866,4.29756,1834.8,1834.7,1.6676]
[1746167716161,5.93776,1834.8,1834.7,1.6676]
[1746167716666,4.848,1834.8,1834.7,1.6676]
[1746167717265,4.848,1834.8,1834.7,2.75742]
[1746167717662,4.848,1834.8,1834.7,1.6676]
[1746167718263,4.73601694,1835.0,1834.9,1.0897]
[1746167718460,4.73601694,1835.0,1834.8,1.08972]
[1746167718666,7.42355694,1835.0,1834.9,1.7469]
[1746167719770,3.80764,1835.0,1834.9,1.7469]
[1746167720168,7.50364,1835.0,1834.9,1.7469]
[1746167720566,1.0897,1834.9,1834.7,0.8628]
[1746167720861,6.0003,1834.9,1834.7,1.95262]
[1746167721065,6.0003,1834.9,1834.7,0.8628]
[1746167721066,4.9106,1834.9,1834.7,0.8628]
[1746167721266,8.6066,1834.9,1834.7,3.58448]
[1746167721569,9.69631,1834.9,1834.7,3.58448]
[1746167721868,8.6066,1834.9,1834.7,3.58448]
[1746167722055,6.9038,1834.9,1834.8,1.08976]
[1746167722261,3.2078,1834.9,1834.8,4.72166]
[1746167724662,3.2078,1834.9,1834.8,3.6319]